Workbook

Sheet Introduction
B3: KSU-Streambank Stabilization
B5: An Excel spreadsheet program to estimate the economic benefits and costs of streambank stabilization projects.
L8: Version- 3.1.2017
B28: INTRODUCTION
B29: This program is designed to analyze streambank stabilization projects based upon the economic benefits and costs at the individual level (i.e., societal benefits and costs are not included in the analysis).
B31: INSTRUCTIONS FOR THE USER:
B32: Be sure to "Enable Content" and "Enable Macros" for the spreadsheet to function correctly.
B33: Visit the Description sheet which displays examples of streambank projects. When you proceed to the Inputs sheet, enter your crop field and stabilization project data into the purple cells. IMPORTANT - Answer all questions in order from top to bottom and take note of the units assigned to each input. There are links to worksheets that can help you determine your one-time and annual costs and payments. After entering your data, click on the Perform Economic Analysis button to read the estimated results of stabilizing a streambank on your crop field. The following sheets (Budget and Result) contain "background" data for the program. The Programs sheet exhibits the different funding programs available for the vegetative portion of the stabilization area. This sheet is a resource to view as you think about applying for financial assistance. The turquoise cells represent the funding programs typically utilized for vegetative buffers.
B39: Some of the sheets contain a Print Screen button. Clicking on this button will print only the screen that you are viewing. On the Inputs sheet, there is a Print Entire Report button which will print every sheet in the workbook.
B44: FOR MORE INFORMATION:
B45: Several of the cells have a red triangle in the upper right hand corner of the cell. By moving your mouse cursor over this triangle, a brief description of the cell will be displayed on the screen.
B52: If you have questions, please contact:
B55: Robin Reid | F55: Jeff Williams | J55: Originally Developed by:
B56: Extension Associate | F56: Professor | J56: Craig Smith
B57: Dept. of Agricultural Economics | F57: Dept. of Agricultural Economics | J57: Watershed Economist
B58: Kansas State University | F58: Kansas State University | J58: Kansas State University
B59: robinreid@ksu.edu | F59: jwilliam@ksu.edu
B60: 785-532-0964 | F60: 785-532-4491
B62: ACKNOWLEDGEMENTS:
B63: The developers would like to express their appreciation for the helpful comments and contributions of Katie Burke, Andrew Klein, John Leatherman, Phil Balch, Paul Clark, Richard Llewelyn, and Doug Blex on this or earlier versions of this spreadsheet.
B67: Funded in part through the Kansas Department of Health and Environment by U.S. EPA Section 319 Funds in support of Kansas Watershed Restoration and Protection Strategies (WRAPS).
B70: Copyright 2017 AgManager.info, K-State Department of Agricultural Economics

Sheet Description
B6: Streambank Stabilization projects can reduce the amount of streambank erosion and help prevent the loss of valuable cropland. Reducing streambank erosion can result in economic benefits at both the individual (e.g., preserving cropland) and societal level (e.g., reducing reservoir sedimentation). This spreadsheet program can help estimate the economic benefits and costs at the individual level. The following figures give a description of one type of streambank stabilization project using bendway weirs or rock vanes in combination with the establishment of riparian area vegetation.
B12: Figure 1: Example Streambank Stabilization Profile | L12: Figure 2: Bendway Weir Theory -- One option for stabilizing a streambank
B45: Figure 3: Initial condition | L45: Figure 4: After grading and weir installation
B76: Figure 5: After stabilization and vegetation planting | L76: Figure 6: After large flow events
B104: This Decision-Assistance Tool will help you evaluate the economic benefits and costs of a streambank stabilization project.
B105: In general, the benefits of a streambank stabilization project come in the form of: value of acres not lost to erosion, income from being able to crop the preserved acres not in CCRP acres, cost-share and incentive payments, and tax breaks from the reclassification of ag land.
B109: The costs of a streambank stabilization project come in the form of: one time installation costs, annual maintenance costs, and the initial loss of cropping income from cropland being taken out of production and enrolled into CCRP.

Sheet Inputs
D1: *Pay attention to Units!
B2: Field Inputs
B3: Kansas County | C3: MARSHALL | D3: County
B4: Total Size of Field | C4: 80 | D4: acres
B5: Cropland Value | C5: 5500 | D5: dollars / acre
B6: Annual Cropland Value Growth Rate | C6: 0.041 | D6: percent
B7: Cropland Rental Rate - not CCRP rental rate | C7: 80 | D7: dollars / acre / year
B8: Annual Cropland Rental Growth Rate | C8: 0.022 | D8: percent
B9: =IF(C2="Cash-Rent Tenant","N/A","Property Taxes") -> Property Taxes | C9: 12 | D9: dollars / acre
B10: Opportunity Cost of Your Money | C10: 0.05 | D10: percent
B12: Project Information
B13: Project Length | C13: 1200 | D13: feet
B14: Project Width | C14: 66 | D14: feet
B15: Project Area | C15: =((C13*C14)/43560)*1.2 -> 2.181818182 | D15: acres
B16: Estimated Acreage Lost to Erosion | C16: 10 | D16: acres
B17: Time Period over which this Loss Occurred | C17: 15 | D17: years
B19: One Time Costs
B20: Engineering and Design | C20: =OneCost!L7 -> 18175 | D20: dollars
B21: Streambank Stabilization Costs | C21: =OneCost!L34 -> 49085.5 | D21: dollars
B22: Vegetative Buffer Costs | C22: =OneCost!L59 -> 5138.375 | D22: dollars
B23: Other Costs | C23: 500 | D23: dollars
B24: TOTAL ONE TIME COSTS | C24: =SUM(C20:C23) -> 72898.875 | D24: dollars
B26: Annual Costs
B27: Annual Maintenance Costs | C27: 0 | D27: dollars / acre / year
B28: Other Annual Costs | C28: 0 | D28: dollars / acre / year
B29: Inflation Rate of Annual Costs | C29: 0.04 | D29: percent
B30: TOTAL ANNUAL COSTS | C30: =SUM(C27:C28) -> 0 | D30: dollars / acre / year
B32: One Time Payments Received
B33: One Time Cost-share / Incentive Payments | C33: =OnePayment!$J$18 -> 71495.49432 | D33: dollars
B34: Other Payments | C34: 0 | D34: dollars
B35: Management Payment | C35: =(2/3*C15)*(87.5)+(1/3*C15)*(33+8.5) -> 157.4545455 | D35: dollars
B36: Contract Year Received | C36: 8
B37: TOTAL ONE TIME PAYMENTS | C37: =SUM(C33:C34) -> 71495.49432 | D37: dollars
C38: =AnnualPayments!$J$8 -> 114.3636148
B39: Annual Payments Received
B40: Annual Rental / Incentive Payments | C40: =AnnualPayments!$J$8 -> 114.3636148 | D40: dollars / acre / year
B41: Other Annual Payments | C41: 0 | D41: dollars / acre / year
B42: TOTAL ANNUAL PAYMENTS | C42: =SUM(C40:C41) -> 114.3636148 | D42: dollars / acre / year
B44: Financial Assistance
B45: Continuous CRP Contract Length - Time period for Economic Analysis | C45: 15 | D45: years
B46: Property Tax Reduction | C46: 0 | D46: percent
F69: 10
F70: 11
F71: 12
B72: =VLOOKUP(C3,B74:C178,2) -> 95.30301231 | F72: 13
F73: 14
B74: =AnnualPayments!B27 -> ALLEN | C74: =AnnualPayments!D27 -> 68.12128402 | F74: 15
B75: =AnnualPayments!B28 -> ANDERSON | C75: =AnnualPayments!D28 -> 79.21647091
B76: =AnnualPayments!B29 -> ATCHISON | C76: =AnnualPayments!D29 -> 106.8762106
B77: =AnnualPayments!B30 -> BARBER | C77: =AnnualPayments!D30 -> 49.79310479
B78: =AnnualPayments!B31 -> BARTON | C78: =AnnualPayments!D31 -> 47.45064458
B79: =AnnualPayments!B32 -> BOURBON | C79: =AnnualPayments!D32 -> 71.64968185
B80: =AnnualPayments!B33 -> BROWN | C80: =AnnualPayments!D33 -> 118.2133315
B81: =AnnualPayments!B34 -> BUTLER | C81: =AnnualPayments!D34 -> 65.02759801
B82: =AnnualPayments!B35 -> CHASE | C82: =AnnualPayments!D35 -> 76.47504202
B83: =AnnualPayments!B36 -> CHAUTAUQUA | C83: =AnnualPayments!D36 -> 58.23550867
B84: =AnnualPayments!B37 -> CHEROKEE | C84: =AnnualPayments!D37 -> 72.27665074
B85: =AnnualPayments!B38 -> CHEYENNE | C85: =AnnualPayments!D38 -> 43.15994084
B86: =AnnualPayments!B39 -> CLARK | C86: =AnnualPayments!D39 -> 44.6501184
B87: =AnnualPayments!B40 -> CLAY | C87: =AnnualPayments!D40 -> 73.34970664
B88: =AnnualPayments!B41 -> CLOUD | C88: =AnnualPayments!D41 -> 68.12094201
B89: =AnnualPayments!B42 -> COFFEY | C89: =AnnualPayments!D42 -> 73.38353939
B90: =AnnualPayments!B43 -> COMANCHE | C90: =AnnualPayments!D43 -> 42.27670613
B91: =AnnualPayments!B44 -> COWLEY | C91: =AnnualPayments!D44 -> 55.33993792
B92: =AnnualPayments!B45 -> CRAWFORD | C92: =AnnualPayments!D45 -> 68.4123677
B93: =AnnualPayments!B46 -> DECATUR | C93: =AnnualPayments!D46 -> 49.23044408
B94: =AnnualPayments!B47 -> DICKINSON | C94: =AnnualPayments!D47 -> 68.39180852
B95: =AnnualPayments!B48 -> DONIPHAN | C95: =AnnualPayments!D48 -> 138.6007931
B96: =AnnualPayments!B49 -> DOUGLAS | C96: =AnnualPayments!D49 -> 83.28374534
B97: =AnnualPayments!B50 -> EDWARDS | C97: =AnnualPayments!D50 -> 45.76433464
B98: =AnnualPayments!B51 -> ELK | C98: =AnnualPayments!D51 -> 66.10438581
B99: =AnnualPayments!B52 -> ELLIS | C99: =AnnualPayments!D52 -> 46.35346445
B100: =AnnualPayments!B53 -> ELLSWORTH | C100: =AnnualPayments!D53 -> 56.24986753
B101: =AnnualPayments!B54 -> FINNEY | C101: =AnnualPayments!D54 -> 53.49536308
B102: =AnnualPayments!B55 -> FORD | C102: =AnnualPayments!D55 -> 46.46352378
B103: =AnnualPayments!B56 -> FRANKLIN | C103: =AnnualPayments!D56 -> 77.6799819
B104: =AnnualPayments!B57 -> GEARY | C104: =AnnualPayments!D57 -> 79.50763675
B105: =AnnualPayments!B58 -> GOVE | C105: =AnnualPayments!D58 -> 50.31686415
B106: =AnnualPayments!B59 -> GRAHAM | C106: =AnnualPayments!D59 -> 50.20066523
B107: =AnnualPayments!B60 -> GRANT | C107: =AnnualPayments!D60 -> 45.13721922
B108: =AnnualPayments!B61 -> GRAY | C108: =AnnualPayments!D61 -> 63.58002088
B109: =AnnualPayments!B62 -> GREELEY | C109: =AnnualPayments!D62 -> 42.66437256
B110: =AnnualPayments!B63 -> GREENWOOD | C110: =AnnualPayments!D63 -> 70.18036362
B111: =AnnualPayments!B64 -> HAMILTON | C111: =AnnualPayments!D64 -> 40.54664735
B112: =AnnualPayments!B65 -> HARPER | C112: =AnnualPayments!D65 -> 47.17691219
B113: =AnnualPayments!B66 -> HARVEY | C113: =AnnualPayments!D66 -> 57.13171904
B114: =AnnualPayments!B67 -> HASKELL | C114: =AnnualPayments!D67 -> 48.48191288
B115: =AnnualPayments!B68 -> HODGEMAN | C115: =AnnualPayments!D68 -> 47.18749326
B116: =AnnualPayments!B69 -> JACKSON | C116: =AnnualPayments!D69 -> 89.23093643
B117: =AnnualPayments!B70 -> JEFFERSON | C117: =AnnualPayments!D70 -> 84.55038461
B118: =AnnualPayments!B71 -> JEWELL | C118: =AnnualPayments!D71 -> 63.09344151
B119: =AnnualPayments!B72 -> JOHNSON | C119: =AnnualPayments!D72 -> 73.86891964
B120: =AnnualPayments!B73 -> KEARNY | C120: =AnnualPayments!D73 -> 60.66106071
B121: =AnnualPayments!B74 -> KINGMAN | C121: =AnnualPayments!D74 -> 48.40364433
B122: =AnnualPayments!B75 -> KIOWA | C122: =AnnualPayments!D75 -> 46.02331785
B123: =AnnualPayments!B76 -> LABETTE | C123: =AnnualPayments!D76 -> 66.85468682
B124: =AnnualPayments!B77 -> LANE | C124: =AnnualPayments!D77 -> 47.41202947
B125: =AnnualPayments!B78 -> LEAVENWORTH | C125: =AnnualPayments!D78 -> 87.63334257
B126: =AnnualPayments!B79 -> LINCOLN | C126: =AnnualPayments!D79 -> 66.36127043
B127: =AnnualPayments!B80 -> LINN | C127: =AnnualPayments!D80 -> 75.05593493
B128: =AnnualPayments!B81 -> LOGAN | C128: =AnnualPayments!D81 -> 44.93971123
B129: =AnnualPayments!B82 -> LYON | C129: =AnnualPayments!D82 -> 65.28217293
B130: =AnnualPayments!B83 -> MCPHERSON | C130: =AnnualPayments!D83 -> 56.88483319
B131: =AnnualPayments!B84 -> MARION | C131: =AnnualPayments!D84 -> 55.90917684
B132: =AnnualPayments!B85 -> MARSHALL | C132: =AnnualPayments!D85 -> 95.30301231
B133: =AnnualPayments!B86 -> MEADE | C133: =AnnualPayments!D86 -> 48.32136068
B134: =AnnualPayments!B87 -> MIAMI | C134: =AnnualPayments!D87 -> 68.70240773
B135: =AnnualPayments!B88 -> MITCHELL | C135: =AnnualPayments!D88 -> 69.63823562
B136: =AnnualPayments!B89 -> MONTGOMERY | C136: =AnnualPayments!D89 -> 66.08606992
B137: =AnnualPayments!B90 -> MORRIS | C137: =AnnualPayments!D90 -> 63.40438244
B138: =AnnualPayments!B91 -> MORTON | C138: =AnnualPayments!D91 -> 41.14644317
B139: =AnnualPayments!B92 -> NEMAHA | C139: =AnnualPayments!D92 -> 111.7823049
B140: =AnnualPayments!B93 -> NEOSHO | C140: =AnnualPayments!D93 -> 64.09156456
B141: =AnnualPayments!B94 -> NESS | C141: =AnnualPayments!D94 -> 49.73366692
B142: =AnnualPayments!B95 -> NORTON | C142: =AnnualPayments!D95 -> 45.58731595
B143: =AnnualPayments!B96 -> OSAGE | C143: =AnnualPayments!D96 -> 71.23723243
B144: =AnnualPayments!B97 -> OSBORNE | C144: =AnnualPayments!D97 -> 61.90531541
B145: =AnnualPayments!B98 -> OTTAWA | C145: =AnnualPayments!D98 -> 66.03624596
B146: =AnnualPayments!B99 -> PAWNEE | C146: =AnnualPayments!D99 -> 47.69935899
B147: =AnnualPayments!B100 -> PHILLIPS | C147: =AnnualPayments!D100 -> 54.33483765
B148: =AnnualPayments!B101 -> POTTAWATOMIE | C148: =AnnualPayments!D101 -> 90.2343369
B149: =AnnualPayments!B102 -> PRATT | C149: =AnnualPayments!D102 -> 42.93182363
B150: =AnnualPayments!B103 -> RAWLINS | C150: =AnnualPayments!D103 -> 46.84379344
B151: =AnnualPayments!B104 -> RENO | C151: =AnnualPayments!D104 -> 57.92184738
B152: =AnnualPayments!B105 -> REPUBLIC | C152: =AnnualPayments!D105 -> 72.35965408
B153: =AnnualPayments!B106 -> RICE | C153: =AnnualPayments!D106 -> 55.13497437
B154: =AnnualPayments!B107 -> RILEY | C154: =AnnualPayments!D107 -> 85.67236172
B155: =AnnualPayments!B108 -> ROOKS | C155: =AnnualPayments!D108 -> 54.0801528
B156: =AnnualPayments!B109 -> RUSH | C156: =AnnualPayments!D109 -> 49.59653552
B157: =AnnualPayments!B110 -> RUSSELL | C157: =AnnualPayments!D110 -> 50.11794233
B158: =AnnualPayments!B111 -> SALINE | C158: =AnnualPayments!D111 -> 61.38300342
B159: =AnnualPayments!B112 -> SCOTT | C159: =AnnualPayments!D112 -> 49.78250366
B160: =AnnualPayments!B113 -> SEDGWICK | C160: =AnnualPayments!D113 -> 55.70504426
B161: =AnnualPayments!B114 -> SEWARD | C161: =AnnualPayments!D114 -> 43.79859638
B162: =AnnualPayments!B115 -> SHAWNEE | C162: =AnnualPayments!D115 -> 93.22059139
B163: =AnnualPayments!B116 -> SHERIDAN | C163: =AnnualPayments!D116 -> 50.44952251
B164: =AnnualPayments!B117 -> SHERMAN | C164: =AnnualPayments!D117 -> 44.95208969
B165: =AnnualPayments!B118 -> SMITH | C165: =AnnualPayments!D118 -> 58.34183395
B166: =AnnualPayments!B119 -> STAFFORD | C166: =AnnualPayments!D119 -> 55.63466912
B167: =AnnualPayments!B120 -> STANTON | C167: =AnnualPayments!D120 -> 39.36288251
B168: =AnnualPayments!B121 -> STEVENS | C168: =AnnualPayments!D121 -> 40.31354686
B169: =AnnualPayments!B122 -> SUMNER | C169: =AnnualPayments!D122 -> 52.18178903
B170: =AnnualPayments!B123 -> THOMAS | C170: =AnnualPayments!D123 -> 46.93295667
B171: =AnnualPayments!B124 -> TREGO | C171: =AnnualPayments!D124 -> 43.8690408
B172: =AnnualPayments!B125 -> WABAUNSEE | C172: =AnnualPayments!D125 -> 87.44413181
B173: =AnnualPayments!B126 -> WALLACE | C173: =AnnualPayments!D126 -> 42.72089228
B174: =AnnualPayments!B127 -> WASHINGTON | C174: =AnnualPayments!D127 -> 84.05341346
B175: =AnnualPayments!B128 -> WICHITA | C175: =AnnualPayments!D128 -> 50.64671024
B176: =AnnualPayments!B129 -> WILSON | C176: =AnnualPayments!D129 -> 68.64814086
B177: =AnnualPayments!B130 -> WOODSON | C177: =AnnualPayments!D130 -> 67.21441277
B178: =AnnualPayments!B131 -> WYANDOTTE | C178: =AnnualPayments!D131 -> 100

Sheet Econ Analysis
B2: Streambank Stabilization: Economic Analysis | S2: =NOW() -> 2017-03-14T09:20:18.630
S3: =YEAR(S2) -> 2017
B4: ="Your project area is located in "&Inputs!C3 &" County, Kansas on a "&Inputs!C4 &" acre field." -> Your project area is located in MARSHALL County, Kansas on a 80 acre field. | H4: Your project area is: | I4: =Inputs!C15 -> 2.181818182 | J4: acres in size.
B6: The results are based upon the following assumptions:
B8: One time Costs: | C8: =SUM(Inputs!$C$20:$C$23) -> 72898.875 | F8: One time Cost-Share Payments: | G8: =SUM(Inputs!$C$33:$C$35) -> 71652.94886 | J8: Time Period Selected: | K8: =Inputs!C45 -> 15 | L8: years
B9: Annual Costs: | C9: =Budget!D25 -> 0 | F9: Annual Incentive Payments: | G9: =Budget!H25 -> 249.5206141 | J9: Opportunity Cost of Your Money: | K9: =Inputs!C10 -> 0.05
B11: The first year out-of-pocket costs of the streambank project would be | G11: =IF(NPV!C4-NPV!E4>0,NPV!C4-NPV!E4,0) -> 1403.380682 | H11: this accounts for any cost-share payments you may receive.
B12: Based on the information you have provided, a streambank stabilization project could potentially save | I12: =Budget!L17 -> 0.6666666667 | J12: acres annually.
B14: TAKE HOME MESSAGE:
B15: If you consider the asset value of the land that is preserved by the streambank stabilization project, then the take-home message is:
B16: You would be | C16: =NPV!C29 -> 4967.84737 | D16: per year | E16: =IF(C16>0, "better off", "worse off") -> better off | F16: by stabilizing this streambank versus doing nothing.
B17: A streambank project would | D17: =IF(NPV!C28>0,"return","lose") -> return | E17: =NPV!C28 -> 51564.55688 | F17: ="in total over the "&Inputs!C45& " year time period you have selected." -> in total over the 15 year time period you have selected.
B19: If you DO NOT consider the asset value of the land that is preserved by the streambank stabilization project, then the take-home message is:
B20: You would be | C20: =NPV!F29 -> 310.9024604 | D20: per year | E20: =IF(C20>0, "better off", "worse off") -> better off | F20: by stabilizing this streambank versus doing nothing.
B21: A streambank project would | D21: =IF(NPV!F28>0,"return","lose") -> return | E21: =NPV!F28 -> 3227.061222 | F21: ="in total over the "&Inputs!C45& " year time period you have selected." -> in total over the 15 year time period you have selected.
B23: The asset value of the land that is preserved by the project is a real value that should probably be considered in your decision-making. It is, however, a value that would not be realized as cash until the property is sold.
B137: In general, the benefits of a streambank stabilization project come in the form of: value of acres not lost to erosion, income from being able to crop the preserved acres not in CCRP acres, cost-share and incentive payments, and tax breaks from the reclassification of ag land.
B141: The costs of a streambank stabilization project come in the form of: one time installation costs, annual maintenance costs, and the initial loss of cropping income from cropland being taken out of production and enrolled into CCRP.
B144: ="In order to effectively compare scenarios which occur over multiple years (10 to 15 years), we must convert all costs and returns to today's dollars (e.g., "&S3 &" dollars)." -> In order to effectively compare scenarios which occur over multiple years (10 to 15 years), we must convert all costs and returns to today's dollars (e.g., 2017 dollars).
B146: Net Present Value calculations convert future values into today's dollars. The net present value analysis uses a discount factor to equate a series of future cash flows into an equivalent amount of cash today. For example, if you are considering enrolling land into a 15 year Continuous Conservation Reserve Program (CRP) program, the projected net income in years 2 through 15 is discounted back to its equivalent value in today’s dollars. Because a dollar today can earn interest until next year, it will be valued more highly than a dollar received in the future
B148: For streambank stabilization assistance, be sure to contact your local county conservation district. A Kansas Conservation District Directory
B149: can be found at: | C149: http://www.kacdnet.org/districts.html
B160: Limitation of Liability:
B162: This computer program is distrubuted by Kansas State University on an "as is" basis, without warranty. Kansas State University and the authors of this software will have no liability or responsibility to the cooperator or any other person or entity with respect to any liability, loss, or damage caused, or alleged to be caused, directly or indirectly by programs sold or given away by Kansas State University or the authors. This includes but is not limited to, any interruption of service, loss of business or anticipatory profits, or consequential damages resulting from user or operation, and in no event will Kansas State University or the authors be liable for loss of profits or indirect, special, or consequential damages arising from the use of the software provided by Kansas State University or the authors.

Sheet OneCost
B2: One Time Construction Costs Worksheet
B3: Enter Values in Purple Cells Only!!!
B4: Engineering and Design | J4: Total
C5: Bank Stabilization | J5: 18175
C6: Vegetation/CCRP Area | J6: 0
J7: =SUM(J5:J6) -> 18175 | L7: =J7 -> 18175
B8: Bank Stabilization Costs
C9: Equipment | E9: Hours | F9: @ | G9: $ / hour
C10: Excavator | E10: 80 | G10: 175 | J10: =E10*G10 -> 14000
C11: Dozer | E11: 20 | G11: 125 | J11: 2500
C12: Loader | E12: 20 | G12: 125 | J12: 2500
C13: Dump Truck | E13: 12 | G13: 125 | J13: 1500
C14: Tractor | G14: 85 | J14: 0
C15: Seeding/Mulching | E15: 0 | G15: 0 | J15: 0
C16: Other | G16: 95 | J16: 0
J17: =SUM(J10:J16) -> 20500 | L17: =J17 -> 20500
C18: Materials | E18: Tons | F18: @ | G18: $ / ton
C19: LPSTP | D19: Shot Rock | E19: 1770 | G19: 9.5 | J19: =E19*G19 -> 16815
C20: Weir 1 | D20: Shot Rock | E20: 177 | G20: 9.5 | J20: 1681.5
C21: Weir 2 | D21: Shot Rock | E21: 177 | G21: 9.5 | J21: 1681.5
C22: Weir 3 | D22: Shot Rock | E22: 177 | G22: 9.5 | J22: 1681.5
C23: Weir 4 | D23: Shot Rock | E23: 177 | G23: 9.5 | J23: 1681.5
C24: Weir 5 | D24: Shot Rock | E24: 177 | G24: 9.5 | J24: 1681.5
C25: Weir 6 | D25: Shot Rock | E25: 177 | G25: 9.5 | J25: 1681.5
C26: Weir 7 | D26: Shot Rock | E26: 177 | G26: 9.5 | J26: 1681.5
C27: Weir 8 | D27: Shot Rock | E27: 0 | G27: 0 | J27: 0
C28: Weir 9 | D28: Shot Rock | E28: 0 | G28: 0 | J28: 0
C29: Other | E29: 0 | G29: 0 | J29: 0
J30: =SUM(J19:J29) -> 28585.5 | L30: =J30 -> 28585.5
C31: Other Labor Costs | E31: Hours | F31: @ | G31: $ / hour
C32: Other Labor | E32: 0 | G32: 0 | J32: =E32*G32 -> 0 | L32: =J32 -> 0
L34: =SUM(L9:L33) -> 49085.5
B35: Vegetative Buffer Costs
C36: Equipment | E36: Acres | F36: @ | G36: $ / acre
C37: Site Preparation | E37: 2.2 | G37: 190 | J37: =E37*G37 -> 418
C38: Drill Cover Crop | E38: 1.85 | G38: 310 | J38: 573.5
C39: Herbicide application | E39: 1.85 | G39: 125 | J39: 231.25
C40: Drill Grass | E40: 0.33 | G40: 1100 | J40: 363
C41: Tree & Shrub Planting | E41: 1.85 | G41: 952 | J41: =E41*G41 -> 1761.2
C42: Producer/Landowner | G42: 0 | J42: 0
J43: =SUM(J37:J42) -> 3346.95 | L43: =J43 -> 3346.95
C45: Materials | E45: Units | F45: @ | G45: $ / unit
C46: Cover Crop Seed | E46: 1.85 | G46: 55 | J46: =E46*G46 -> 101.75
C47: Herbicide | E47: 1.85 | G47: 8.5 | J47: =E47*G47 -> 15.725
C48: Grass Seed | E48: 0.33 | G48: 115 | J48: 37.95
C49: Mulch | E49: 0 | G49: 0 | J49: 0
C50: Live Stakes | E50: 0 | G50: 0 | J50: 0
C51: Bare Roots | E51: 1258 | G51: 1 | J51: 1258
C52: Trees | E52: 0 | G52: 0 | J52: 0
C53: Tree Shelters | E53: 0 | G53: 0 | J53: 0
C54: Other Material | E54: 1 | G54: 378 | J54: 378
J55: =SUM(J46:J54) -> 1791.425 | L55: =J55 -> 1791.425
C56: Other Labor Costs | E56: Hours | F56: @ | G56: $ / hour
C57: Other Labor | E57: 0 | G57: 0 | J57: =E57*G57 -> 0 | L57: =J57 -> 0
L59: =SUM(L37:L57) -> 5138.375
G61: Total One Time Construction Costs | L61: =L7+L34+L59 -> 72398.875

Sheet OnePayment
B2: One Time Payments Worksheet
B3: Enter Values in Purple Cells Only!!!
B4: Kansas Department of Agriculture Streambank Protection Program | I4: =OneCost!J5+OneCost!L34 -> 67260.5
B5: (100% of streambank stabilization costs and design)
B6: Continuous Conservation Reserve Program (CCRP) for vegetation establishment | I6: =(OneCost!L59-OneCost!J38-OneCost!J46)*0.5 -> 2231.5625
B7: (One time payment, FSA, 50% of county average cost for buffer costs excluding cover crop)
B8: CCRP-Practice Incentive Payment | I8: =(OneCost!L59-OneCost!J38-OneCost!J46)*0.4 -> 1785.25
B9: (One time payment, FSA, 40% of county average cost for buffer costs excluding cover crop)
B10: CCRP-Sign-up Incentive Payment | I10: =100*Inputs!C15 -> 218.1818182
B11: (One time payment, FSA, $100/acre for CCRP area)
B12: Kansas Alliance for Wetlands and Streams (KAWS): One time payment, various amounts | I12: 0
B14: Regional Conservation Partnership Program: flat rat per unit or acre installed, must qualify | I14: 0
B16: Other (WRAPS, Watershed Land Trust, etc.) | I16: 0
G18: Total One Time Payments | J18: =SUM(I4:J17) -> 71495.49432
B21: * Default values are estimations only - calculated by multiplying the cost-share percentages by the one time cost values you entered previously (on the OneCost worksheet). Cost-share payment rates are actually based on the lesser of actual or county average costs, so please consult with you local conservation district to obtain accurate values.

Sheet AnnualPayments
B2: Annual Payments Worksheet
B3: You May Enter Values in any of the Purple Cells
B4: CCRP rental rate w/out added incentives | J4: =Inputs!B72 -> 95.30301231 | K4: per acre /year
B5: Is the project area located in a designated TMDL Watershed? | J5: NO | O5: NO
B6: Annual Rental Payment (% of county rental rate) | J6: =IF(J5="yes",1.56,1.2) -> 1.2 | O6: YES
G8: Total Annual Payments | J8: =J4*J6 -> 114.3636148 | K8: per acre / year
B25: Estimated Continuous Conservation Reserve Program (CCRP) Rental Rates
B26: COUNTY | C26: Upland CRP Weighted Average Rental Rates* | D26: Adjusted CCRP Rental Rates for vegetative buffer soils**
B27: ALLEN | C27: 54.49702721 | D27: =C27*$H$39+C27 -> 68.12128402
B28: ANDERSON | C28: 63.37317673 | D28: 79.21647091 | E28: *These values represent a simple weighted average of year 2015 "Upland" CRP rental rates.
B29: ATCHISON | C29: 85.50096846 | D29: 106.8762106 | F29: Year: | G29: 2015
B30: BARBER | C30: 39.83448383 | D30: 49.79310479 | F30: Source: | G30: USDA Farm Service Agency
B31: BARTON | C31: 37.96051566 | D31: 47.45064458
B32: BOURBON | C32: 57.31974548 | D32: 71.64968185 | E32: **These values have been adjusted to represent a more realistic CCRP rental rate for vegetative buffer sites. These soils are estimated to pay higher rental rates than Upland soils, due to their higher erosive potential. This does not include any of the added incentive payments. NOTE: This is only an estimate; check with your local Conservation District for specific rental rates. Make changes on the Assumptions sheet.
B33: BROWN | C33: 94.57066521 | D33: 118.2133315
B34: BUTLER | C34: 52.02207841 | D34: 65.02759801
B35: CHASE | C35: 61.18003362 | D35: 76.47504202
B36: CHAUTAUQUA | C36: 46.58840694 | D36: 58.23550867
B37: CHEROKEE | C37: 57.82132059 | D37: 72.27665074
B38: CHEYENNE | C38: 34.52795267 | D38: 43.15994084
B39: CLARK | C39: 35.72009472 | D39: 44.6501184 | E39: Adjustment Factor = | H39: 0.25
B40: CLAY | C40: 58.67976531 | D40: 73.34970664
B41: CLOUD | C41: 54.4967536 | D41: 68.12094201
B42: COFFEY | C42: 58.70683151 | D42: 73.38353939
B43: COMANCHE | C43: 33.8213649 | D43: 42.27670613
B44: COWLEY | C44: 44.27195034 | D44: 55.33993792
B45: CRAWFORD | C45: 54.72989416 | D45: 68.4123677
B46: DECATUR | C46: 39.38435526 | D46: 49.23044408
B47: DICKINSON | C47: 54.71344682 | D47: 68.39180852
B48: DONIPHAN | C48: 110.8806345 | D48: 138.6007931
B49: DOUGLAS | C49: 66.62699628 | D49: 83.28374534
B50: EDWARDS | C50: 36.61146771 | D50: 45.76433464
B51: ELK | C51: 52.88350865 | D51: 66.10438581
B52: ELLIS | C52: 37.08277156 | D52: 46.35346445
B53: ELLSWORTH | C53: 44.99989403 | D53: 56.24986753
B54: FINNEY | C54: 42.79629047 | D54: 53.49536308
B55: FORD | C55: 37.17081902 | D55: 46.46352378
B56: FRANKLIN | C56: 62.14398552 | D56: 77.6799819
B57: GEARY | C57: 63.6061094 | D57: 79.50763675
B58: GOVE | C58: 40.25349132 | D58: 50.31686415
B59: GRAHAM | C59: 40.16053218 | D59: =C59*$H$39+C59 -> 50.20066523
B60: GRANT | C60: 36.10977537 | D60: 45.13721922
B61: GRAY | C61: 50.8640167 | D61: 63.58002088
B62: GREELEY | C62: 34.13149805 | D62: 42.66437256
B63: GREENWOOD | C63: 56.1442909 | D63: 70.18036362
B64: HAMILTON | C64: 32.43731788 | D64: 40.54664735
B65: HARPER | C65: 37.74152975 | D65: 47.17691219
B66: HARVEY | C66: 45.70537523 | D66: 57.13171904
B67: HASKELL | C67: 38.78553031 | D67: 48.48191288
B68: HODGEMAN | C68: 37.74999461 | D68: 47.18749326
B69: JACKSON | C69: 71.38474915 | D69: 89.23093643
B70: JEFFERSON | C70: 67.64030769 | D70: 84.55038461
B71: JEWELL | C71: 50.4747532 | D71: 63.09344151
B72: JOHNSON | C72: 59.09513571 | D72: 73.86891964
B73: KEARNY | C73: 48.52884857 | D73: 60.66106071
B74: KINGMAN | C74: 38.72291546 | D74: 48.40364433
B75: KIOWA | C75: 36.81865428 | D75: 46.02331785
B76: LABETTE | C76: 53.48374946 | D76: 66.85468682
B77: LANE | C77: 37.92962358 | D77: 47.41202947
B78: LEAVENWORTH | C78: 70.10667405 | D78: 87.63334257
B79: LINCOLN | C79: 53.08901635 | D79: 66.36127043
B80: LINN | C80: 60.04474794 | D80: 75.05593493
B81: LOGAN | C81: 35.95176898 | D81: 44.93971123
B82: LYON | C82: 52.22573834 | D82: 65.28217293
B83: MCPHERSON | C83: 45.50786655 | D83: 56.88483319
B84: MARION | C84: 44.72734147 | D84: 55.90917684
B85: MARSHALL | C85: 76.24240985 | D85: 95.30301231
B86: MEADE | C86: 38.65708855 | D86: 48.32136068
B87: MIAMI | C87: 54.96192619 | D87: 68.70240773
B88: MITCHELL | C88: 55.7105885 | D88: 69.63823562
B89: MONTGOMERY | C89: 52.86885593 | D89: 66.08606992
B90: MORRIS | C90: 50.72350595 | D90: 63.40438244
B91: MORTON | C91: 32.91715454 | D91: =C91*$H$39+C91 -> 41.14644317
B92: NEMAHA | C92: 89.42584392 | D92: 111.7823049
B93: NEOSHO | C93: 51.27325165 | D93: 64.09156456
B94: NESS | C94: 39.78693354 | D94: 49.73366692
B95: NORTON | C95: 36.46985276 | D95: 45.58731595
B96: OSAGE | C96: 56.98978594 | D96: 71.23723243
B97: OSBORNE | C97: 49.52425233 | D97: 61.90531541
B98: OTTAWA | C98: 52.82899677 | D98: 66.03624596
B99: PAWNEE | C99: 38.15948719 | D99: 47.69935899
B100: PHILLIPS | C100: 43.46787012 | D100: 54.33483765
B101: POTTAWATOMIE | C101: 72.18746952 | D101: 90.2343369
B102: PRATT | C102: 34.34545891 | D102: 42.93182363
B103: RAWLINS | C103: 37.47503475 | D103: 46.84379344
B104: RENO | C104: 46.3374779 | D104: 57.92184738
B105: REPUBLIC | C105: 57.88772327 | D105: 72.35965408
B106: RICE | C106: 44.1079795 | D106: 55.13497437
B107: RILEY | C107: 68.53788937 | D107: 85.67236172
B108: ROOKS | C108: 43.26412224 | D108: 54.0801528
B109: RUSH | C109: 39.67722842 | D109: 49.59653552
B110: RUSSELL | C110: 40.09435386 | D110: 50.11794233
B111: SALINE | C111: 49.10640274 | D111: 61.38300342
B112: SCOTT | C112: 39.82600293 | D112: 49.78250366
B113: SEDGWICK | C113: 44.5640354 | D113: 55.70504426
B114: SEWARD | C114: 35.0388771 | D114: 43.79859638
B115: SHAWNEE | C115: 74.57647311 | D115: 93.22059139
B116: SHERIDAN | C116: 40.35961801 | D116: 50.44952251
B117: SHERMAN | C117: 35.96167175 | D117: 44.95208969
B118: SMITH | C118: 46.67346716 | D118: 58.34183395
B119: STAFFORD | C119: 44.5077353 | D119: 55.63466912
B120: STANTON | C120: 31.49030601 | D120: 39.36288251
B121: STEVENS | C121: 32.25083748 | D121: 40.31354686
B122: SUMNER | C122: 41.74543122 | D122: 52.18178903
B123: THOMAS | C123: 37.54636534 | D123: =C123*$H$39+C123 -> 46.93295667
B124: TREGO | C124: 35.09523264 | D124: 43.8690408
B125: WABAUNSEE | C125: 69.95530545 | D125: 87.44413181
B126: WALLACE | C126: 34.17671383 | D126: 42.72089228
B127: WASHINGTON | C127: 67.24273077 | D127: 84.05341346
B128: WICHITA | C128: 40.51736819 | D128: 50.64671024
B129: WILSON | C129: 54.91851269 | D129: 68.64814086
B130: WOODSON | C130: 53.77153021 | D130: 67.21441277
B131: WYANDOTTE | C131: 80 | D131: 100

Sheet Cropland Trends
B2: KANSAS LAND VALUES & CASH RENTS 2001-2015
B3: source: | C3: https://quickstats.nass.usda.gov/
B5: Non-Irrigated Cropland Values | G5: Non-Irrigated Cropland Rents
B6: Year | C6: Value | D6: % change from previous year | G6: Year | H6: Value | I6: % change from previous year
B7: 2001 | C7: 635 | G7: 2001 | H7: 36
B8: 2002 | C8: 640 | D8: =(C8-C7)/C7 -> 0.007874015748 | G8: 2002 | H8: 36 | I8: =(H8-H7)/H7 -> 0
B9: 2003 | C9: 645 | D9: =(C9-C8)/C8 -> 0.0078125 | G9: 2003 | H9: 36 | I9: 0
B10: 2004 | C10: 650 | D10: 0.007751937984 | G10: 2004 | H10: 37.5 | I10: 0.04166666667
B11: 2005 | C11: 770 | D11: 0.1846153846 | G11: 2005 | H11: 38.5 | I11: 0.02666666667
B12: 2006 | C12: 820 | D12: 0.06493506494 | G12: 2006 | H12: 39 | I12: 0.01298701299
B13: 2007 | C13: 880 | D13: 0.07317073171 | G13: 2007 | H13: 41 | I13: 0.05128205128
B14: 2008 | C14: 980 | D14: 0.1136363636 | G14: 2008 | H14: 42.5 | I14: 0.03658536585
B15: 2009 | C15: 981 | D15: 0.001020408163 | G15: 2009 | H15: 43.5 | I15: 0.02352941176
B16: 2010 | C16: 1060 | D16: 0.08053007136 | G16: 2010 | H16: 43.5 | I16: 0
B17: 2011 | C17: 1290 | D17: 0.2169811321 | G17: 2011 | H17: 44 | I17: 0.01149425287
B18: 2012 | C18: 1590 | D18: 0.2325581395 | G18: 2012 | H18: 52.5 | I18: 0.1931818182
B19: 2013 | C19: 1840 | D19: 0.1572327044 | G19: 2013 | H19: 53 | I19: 0.009523809524
B20: 2014 | C20: 2150 | D20: 0.1684782609 | G20: 2014 | H20: 54 | I20: 0.01886792453
B21: 2015 | C21: 2090 | D21: -0.02790697674 | G21: 2015 | H21: 58 | I21: 0.07407407407
B22: 15-year average = | D22: =AVERAGE(D8:D21) -> 0.09204926702 | G22: 15-year average = | I22: =AVERAGE(I8:I21) -> 0.03570421817
B24: 36-year average = | D24: 0.041 | G24: 36-year average = | I24: 0.022
B31: For county rental rates and values go to:
B32: AgManager.info Land Values | G32: AgManager.info Rental Rates
B35: Historical Kansas Land Values 1880 to 2016
B63: Source: NASS, compiled by Dr. Mykel Taylor, 2017

Sheet Programs
A1: Available Funding for the Vegetative Portion of a Streambank Stabilization Project
A2: Program | B2: Agency | C2: Cost Share | D2: Annual Rental Payment (percentage of County Soil Rental Rate) | E2: One Time Bonus | F2: Annual Maintenace Cost Assistance | G2: Additional Notes**
A3: CRP Continuous Sign-up (CCRP) | B3: FSA | C3: 0.5 | D3: 1 | G3: Landowners can also apply for a reduction in assessed value of land for tax purposes
A4: CRP Continuous Sign-up (CCRP) | B4: FSA | D4: 0.2 | G4: added incentive for contiuous sign-up
A5: CRP Continuous Sign-up (CCRP) | B5: FSA | D5: 0.1 | G5: added incentive for land in EPA "wellhead protection areas"
A6: CCRP-SIP | B6: FSA | E6: $10 per acre X years of contract ($100 per acre) | G6: upfront signing incentive payment - bonus
A7: CCRP-PIP | B7: FSA | C7: 0.4 | G7: practice incentive payment for eligible installation costs
A8: KS WQ Buffer Initiative | B8: SCC | D8: 30% (multiplied by the total CCRP rental payment with all added incentives) | G8: must meet continous CRP requirements AND be in a TMDL Watershed
A9: RCPP/EQIP* | B9: NRCS | C9: Flat rate per unit or acre installed | G9: Only in eligible areas. See your local USDA service center/NRCS for details
A10: Watershed Land Trust** | B10: The Land Trust | C10: Market value of land - with limitations | G10: Long-term easement; contact (913) 685-4600
A11: Clean Water Farms Project | B11: KS Rural Center | C11: up to $5000 in matching funds | E11: $250 for completing farm assessment | G11: must be in a Category 1 "high-priority" watershed
A12: Partners for Fish & Wildlife | B12: Fish and Wildlife Service | C12: 10% - 90% | G12: dependent on: length of agreement, total acres, wildlife & environmental benefits
A13: Example Totals: | C13: 0.9 | D13: 1.56 | E13: 100 | F13: 4
A15: NOTE: The turquoise cells represent the funding programs typically utilized for vegetative buffers. The other programs can definitely be used, but they are more site and region specific.
A17: *Cannot be used with any CRP program
A18: **more requirements may apply, contact the respective agency to find out all the details

Sheet TaxInfo

Sheet Budget
B2: General Data For Streambank Stabilization
B4: Discount Rate | E4: =Inputs!C10 -> 0.05
B5: =Inputs!B5 -> Cropland Value | E5: =Inputs!C5 -> 5500 | F5: per acre
B6: =Inputs!B6 -> Annual Cropland Value Growth Rate | E6: =Inputs!C6 -> 0.041
B7: =Inputs!B7 -> Cropland Rental Rate - not CCRP rental rate | E7: =Inputs!C7 -> 80 | F7: per acre / year
B8: =Inputs!B8 -> Annual Cropland Rental Growth Rate | E8: =Inputs!C8 -> 0.022
B9: Total Annual Costs | E9: =Inputs!C30 -> 0 | F9: per acre / year
B10: =Inputs!B29 -> Inflation Rate of Annual Costs | E10: =Inputs!C29 -> 0.04
B12: Project Length (feet) | L12: =Inputs!C13 -> 1200
B13: Project Width (feet) | L13: =Inputs!C14 -> 66
B14: Acres (length x width/43,560) | L14: =Inputs!C15 -> 2.181818182
B15: Estimated acreage lost over time period | L15: =Inputs!C16 -> 10
B16: Value of estimated acreage lost | G16: =L15 -> 10 | H16: acres | I16: @ | J16: =E5 -> 5500 | K16: per acre | L16: =J16*L15 -> 55000
B17: Estimated average annual acreage lost over period of | G17: =Inputs!C17 -> 15 | H17: yr. | L17: =IF(G17=0,0,G16/G17) -> 0.6666666667
B18: Estimated acreage preserved over | G18: =Inputs!C45 -> 15 | H18: yr. | L18: =IF(L17="-", L17, L17*G18) -> 10
B19: Value of estimated acres preserved | G19: =L18 -> 10 | H19: acres | I19: @ | J19: =J16*(1+E6)^G18 -> 10049.01819 | K19: per acre | L19: =IF(L18="-", "-", L18*J19) -> 100490.1819
B20: Cropland Property Tax ($/acre) | L20: =Inputs!C9 -> 12
B21: Tame Grass Property Tax ($/acre) | L21: =L20*(1-(Inputs!C46)) -> 12
B23: COSTS | F23: PAYMENTS
B24: Total one-time | D24: =SUM(Inputs!C20:C23) -> 72898.875 | F24: Total one-time | H24: =Inputs!C33+Inputs!C34+Inputs!C35 -> 71652.94886
B25: Total annual | D25: =E9*L14 -> 0 | F25: Total annual | H25: =Inputs!C42*L14 -> 249.5206141
B27: Land Effects
B28: Year | C28: Net Acres for Income | L28: With Project | N28: Without Project
D29: Rental Rate $/Ac | E29: Rental Rate Effect | F29: Total Acres Preserved | G29: Land Value $/Ac | H29: Total Additional Value | I29: Property Tax Cropland $/Ac | J29: Property Tax Tame Grass $/Ac | K29: CCRP Acres | L29: Crop Acres | M29: Property Tax | N29: Crop Acres | O29: Property Tax | P29: Net Property Tax Impact | Q29: CCRP Acres | R29: Net Cropland Preserved | S29: Total Saved
B31: 0 | C31: =L14*-1 -> -2.181818182 | D31: =E7 -> 80 | E31: =C31*D31 -> -174.5454545 | F31: 0 | G31: =J16 -> 5500 | I31: =L20 -> 12 | J31: =L21 -> 12 | K31: =L14 -> 2.181818182 | L31: =IF(L18="-",0,L18-K31) -> 7.818181818 | M31: =(K31*J31)+(L31*I31) -> 120 | N31: =IF(L18="-",0,L18) -> 10 | O31: =N31*I31 -> 120 | P31: =M31-O31 -> 0 | Q31: =L14 -> 2.181818182 | R31: =IF(B31<=$G$18,IF(C31>0,C31,0),"-") -> 0 | S31: =IF(B31<=$G$18,Q31+R31,"-") -> 2.181818182
B32: 1 | C32: =IF(B32<=$G$18,(IF($L$17="-",0,C31+$L$17)),"-") -> -1.515151515 | D32: =IF(B32<=$G$18,($E$7*(1+$E$8)^B32),"-") -> 81.76 | E32: =IF(B32<=$G$18,C32*D32,"-") -> -123.8787879 | F32: =IF(B32<=$G$18,(IF($L$17="-",0,$L$17*B32)),"-") -> 0.6666666667 | G32: =IF(B32<=$G$18,(G31*(1+$E$6)),"-") -> 5725.5 | H32: =IF(B32=$G$18,((C32*$J$19)+($L$14*($L$21/$L$20)*$J$19)),0) -> 0 | I32: =IF(B32<=$G$18,(I31*(1+$E$8)),"-") -> 12.264 | J32: =IF(B32<=$G$18,J31*(1+$E$8),"-") -> 12.264 | K32: =IF(B32<=$G$18,K31,"-") -> 2.181818182 | L32: =IF(B32<=$G$18,L31,"-") -> 7.818181818 | M32: =IF(B32<=$G$18,(K32*J32)+(L32*I32),"-") -> 122.64 | N32: =N31 -> 10 | O32: =IF(B32<=$G$18,N32*I32,"-") -> 122.64 | P32: =IF(B32<=$G$18,M32-O32,"-") -> 1.421085472e-14 | Q32: =IF(B32<=$G$18,Q31,"-") -> 2.181818182 | R32: =IF(B32<=$G$18,IF(C32>0,C32,0),"-") -> 0 | S32: =IF(B32<=$G$18,Q32+R32,"-") -> 2.181818182
B33: 2 | C33: =IF(B33<=$G$18,(IF($L$17="-",0,C32+$L$17)),"-") -> -0.8484848485 | D33: =IF(B33<=$G$18,($E$7*(1+$E$8)^B33),"-") -> 83.55872 | E33: =IF(B33<=$G$18,C33*D33,"-") -> -70.89830788 | F33: =IF(B33<=$G$18,(IF($L$17="-",0,$L$17*B33)),"-") -> 1.333333333 | G33: =IF(B33<=$G$18,(G32*(1+$E$6)),"-") -> 5960.2455 | H33: =IF(B33=$G$18,((C33*$J$19)+($L$14*($L$21/$L$20)*$J$19)),0) -> 0 | I33: =IF(B33<=$G$18,(I32*(1+$E$8)),"-") -> 12.533808 | J33: =IF(B33<=$G$18,J32*(1+$E$8),"-") -> 12.533808 | K33: =IF(B33<=$G$18,K32,"-") -> 2.181818182 | L33: =IF(B33<=$G$18,L32,"-") -> 7.818181818 | M33: =IF(B33<=$G$18,(K33*J33)+(L33*I33),"-") -> 125.33808 | N33: =IF(B33<=$G$18,N32-$L$17,"-") -> 9.333333333 | O33: =IF(B33<=$G$18,N33*I33,"-") -> 116.982208 | P33: =IF(B33<=$G$18,M33-O33,"-") -> 8.355872 | Q33: =IF(B33<=$G$18,Q32,"-") -> 2.181818182 | R33: 0 | S33: 2.181818182
B34: 3 | C34: -0.1818181818 | D34: 85.39701184 | E34: -15.52672943 | F34: 2 | G34: 6204.615565 | H34: 0 | I34: 12.80955178 | J34: 12.80955178 | K34: 2.181818182 | L34: 7.818181818 | M34: 128.0955178 | N34: =IF(B34<=$G$18,N33-$L$17,"-") -> 8.666666667 | O34: 111.0161154 | P34: 17.07940237 | Q34: 2.181818182 | R34: 0 | S34: 2.181818182
B35: 4 | C35: 0.4848484848 | D35: 87.2757461 | E35: 42.31551326 | F35: 2.666666667 | G35: 6459.004804 | H35: 0 | I35: 13.09136192 | J35: 13.09136192 | K35: 2.181818182 | L35: 7.818181818 | M35: 130.9136192 | N35: 8 | O35: 104.7308953 | P35: 26.18272383 | Q35: 2.181818182 | R35: 0.4848484848 | S35: 2.666666667
B36: 5 | C36: 1.151515152 | D36: 89.19581251 | E36: 102.7103296 | F36: 3.333333333 | G36: 6723.824001 | H36: 0 | I36: 13.37937188 | J36: 13.37937188 | K36: 2.181818182 | L36: 7.818181818 | M36: 133.7937188 | N36: 7.333333333 | O36: 98.11539377 | P36: 35.67832501 | Q36: 2.181818182 | R36: 1.151515152 | S36: 3.333333333
B37: 6 | C37: 1.818181818 | D37: 91.15812039 | E37: 165.7420371 | F37: 4 | G37: 6999.500785 | H37: 0 | I37: 13.67371806 | J37: 13.67371806 | K37: 2.181818182 | L37: 7.818181818 | M37: 136.7371806 | N37: 6.666666667 | O37: 91.15812039 | P37: 45.5790602 | Q37: 2.181818182 | R37: 1.818181818 | S37: 4
B38: 7 | C38: 2.484848485 | D38: 93.16359904 | E38: 231.4974279 | F38: 4.666666667 | G38: 7286.480317 | H38: 0 | I38: 13.97453986 | J38: 13.97453986 | K38: 2.181818182 | L38: 7.818181818 | M38: 139.7453986 | N38: 6 | O38: 83.84723913 | P38: 55.89815942 | Q38: 2.181818182 | R38: 2.484848485 | S38: 4.666666667
B39: 8 | C39: 3.151515152 | D39: 95.21319822 | E39: 300.0658368 | F39: 5.333333333 | G39: 7585.22601 | H39: 0 | I39: 14.28197973 | J39: 14.28197973 | K39: 2.181818182 | L39: 7.818181818 | M39: 142.8197973 | N39: 5.333333333 | O39: 76.17055857 | P39: 66.64923875 | Q39: 2.181818182 | R39: 3.151515152 | S39: 5.333333333
B40: 9 | C40: 3.818181818 | D40: 97.30788858 | E40: 371.5392109 | F40: 6 | G40: 7896.220276 | H40: 0 | I40: 14.59618329 | J40: 14.59618329 | K40: 2.181818182 | L40: 7.818181818 | M40: 145.9618329 | N40: 4.666666667 | O40: 68.115522 | P40: 77.84631086 | Q40: 2.181818182 | R40: 3.818181818 | S40: 6
B41: 10 | C41: 4.484848485 | D41: 99.44866213 | E41: 446.0121817 | F41: 6.666666667 | G41: 8219.965308 | H41: 0 | I41: 14.91729932 | J41: 14.91729932 | K41: 2.181818182 | L41: 7.818181818 | M41: 149.1729932 | N41: 4 | O41: 59.66919728 | P41: 89.50379591 | Q41: 2.181818182 | R41: 4.484848485 | S41: 6.666666667
B42: 11 | C42: 5.151515152 | D42: 101.6365327 | E42: 523.5821381 | F42: 7.333333333 | G42: 8556.983885 | H42: 0 | I42: 15.2454799 | J42: 15.2454799 | K42: 2.181818182 | L42: 7.818181818 | M42: 152.454799 | N42: 3.333333333 | O42: 50.81826635 | P42: 101.6365327 | Q42: 2.181818182 | R42: 5.151515152 | S42: 7.333333333
B43: 12 | C43: 5.818181818 | D43: 103.8725364 | E43: 604.3493028 | F43: 8 | G43: 8907.820224 | H43: 0 | I43: 15.58088046 | J43: 15.58088046 | K43: 2.181818182 | L43: 7.818181818 | M43: 155.8088046 | N43: 2.666666667 | O43: 41.54901457 | P43: 114.2597901 | Q43: 2.181818182 | R43: 5.818181818 | S43: 8
B44: 13 | C44: 6.484848485 | D44: 106.1577322 | E44: 688.4168089 | F44: 8.666666667 | G44: 9273.040854 | H44: 0 | I44: 15.92365983 | J44: 15.92365983 | K44: 2.181818182 | L44: 7.818181818 | M44: 159.2365983 | N44: 2 | O44: 31.84731966 | P44: 127.3892787 | Q44: 2.181818182 | R44: 6.484848485 | S44: 8.666666667
B45: 14 | C45: 7.151515152 | D45: 108.4932023 | E45: 775.8907802 | F45: 9.333333333 | G45: 9653.235529 | H45: 0 | I45: 16.27398035 | J45: 16.27398035 | K45: 2.181818182 | L45: 7.818181818 | M45: 162.7398035 | N45: 1.333333333 | O45: 21.69864046 | P45: 141.041163 | Q45: 2.181818182 | R45: 7.151515152 | S45: 9.333333333
B46: 15 | C46: 7.818181818 | D46: =IF(B46<=$G$18,($E$7*(1+$E$8)^B46),"-") -> 110.8800528 | E46: 866.8804126 | F46: 10 | G46: 10049.01819 | H46: =IF(B46=$G$18,((C46*$J$19)+($L$14*($L$21/$L$20)*$J$19)),0) -> 100490.1819 | I46: 16.63200792 | J46: 16.63200792 | K46: 2.181818182 | L46: 7.818181818 | M46: 166.3200792 | N46: 0.6666666667 | O46: 11.08800528 | P46: 155.2320739 | Q46: 2.181818182 | R46: 7.818181818 | S46: 10

Sheet NPV
B2: Net Present Value Table
B3: Year | C3: One Time Costs | D3: Annual Costs | E3: One Time Payments | F3: Annual Payments | G3: Land Rental Income Effect | H3: Net Property Tax Impact | I3: Asset Value of Land Preserved
B4: 0 | C4: =Budget!D24 -> 72898.875 | D4: 0 | E4: =Inputs!C33+Inputs!C34 -> 71495.49432 | F4: 0 | G4: =Budget!E31 -> -174.5454545 | H4: =Budget!P31 -> 0 | I4: =Budget!H31 -> 0
B5: 1 | C5: 0 | D5: =Budget!D25 -> 0 | E5: =IF(B5=Inputs!$C$36,Inputs!$C$35,0) -> 0 | F5: =IF(B5<=Budget!$G$18,Budget!$H$25,"-") -> 249.5206141 | G5: =Budget!E32 -> -123.8787879 | H5: =Budget!P32 -> 1.421085472e-14 | I5: =Budget!H32 -> 0
B6: 2 | C6: 0 | D6: =IF(B6<=Budget!$G$18,D5*(1+Budget!$E$10),"-") -> 0 | E6: =IF(B6=Inputs!$C$36,Inputs!$C$35,0) -> 0 | F6: =IF(B6<=Budget!$G$18,Budget!$H$25,"-") -> 249.5206141 | G6: =Budget!E33 -> -70.89830788 | H6: =Budget!P33 -> 8.355872 | I6: =Budget!H33 -> 0
B7: 3 | C7: 0 | D7: =IF(B7<=Budget!$G$18,D6*(1+Budget!$E$10),"-") -> 0 | E7: =IF(B7=Inputs!$C$36,Inputs!$C$35,0) -> 0 | F7: =IF(B7<=Budget!$G$18,Budget!$H$25,"-") -> 249.5206141 | G7: =Budget!E34 -> -15.52672943 | H7: =Budget!P34 -> 17.07940237 | I7: =Budget!H34 -> 0
B8: 4 | C8: 0 | D8: =IF(B8<=Budget!$G$18,D7*(1+Budget!$E$10),"-") -> 0 | E8: =IF(B8=Inputs!$C$36,Inputs!$C$35,0) -> 0 | F8: =IF(B8<=Budget!$G$18,Budget!$H$25,"-") -> 249.5206141 | G8: =Budget!E35 -> 42.31551326 | H8: =Budget!P35 -> 26.18272383 | I8: =Budget!H35 -> 0
B9: 5 | C9: 0 | D9: =IF(B9<=Budget!$G$18,D8*(1+Budget!$E$10),"-") -> 0 | E9: =IF(B9=Inputs!$C$36,Inputs!$C$35,0) -> 0 | F9: =IF(B9<=Budget!$G$18,Budget!$H$25,"-") -> 249.5206141 | G9: =Budget!E36 -> 102.7103296 | H9: =Budget!P36 -> 35.67832501 | I9: =Budget!H36 -> 0
B10: 6 | C10: 0 | D10: =IF(B10<=Budget!$G$18,D9*(1+Budget!$E$10),"-") -> 0 | E10: =IF(B10=Inputs!$C$36,Inputs!$C$35,0) -> 0 | F10: =IF(B10<=Budget!$G$18,Budget!$H$25,"-") -> 249.5206141 | G10: =Budget!E37 -> 165.7420371 | H10: =Budget!P37 -> 45.5790602 | I10: =Budget!H37 -> 0
B11: 7 | C11: 0 | D11: =IF(B11<=Budget!$G$18,D10*(1+Budget!$E$10),"-") -> 0 | E11: =IF(B11=Inputs!$C$36,Inputs!$C$35,0) -> 0 | F11: =IF(B11<=Budget!$G$18,Budget!$H$25,"-") -> 249.5206141 | G11: =Budget!E38 -> 231.4974279 | H11: =Budget!P38 -> 55.89815942 | I11: =Budget!H38 -> 0
B12: 8 | C12: 0 | D12: =IF(B12<=Budget!$G$18,D11*(1+Budget!$E$10),"-") -> 0 | E12: =IF(B12=Inputs!$C$36,Inputs!$C$35,0) -> 157.4545455 | F12: =IF(B12<=Budget!$G$18,Budget!$H$25,"-") -> 249.5206141 | G12: =Budget!E39 -> 300.0658368 | H12: =Budget!P39 -> 66.64923875 | I12: =Budget!H39 -> 0
B13: 9 | C13: 0 | D13: =IF(B13<=Budget!$G$18,D12*(1+Budget!$E$10),"-") -> 0 | E13: =IF(B13=Inputs!$C$36,Inputs!$C$35,0) -> 0 | F13: =IF(B13<=Budget!$G$18,Budget!$H$25,"-") -> 249.5206141 | G13: =Budget!E40 -> 371.5392109 | H13: =Budget!P40 -> 77.84631086 | I13: =Budget!H40 -> 0
B14: 10 | C14: 0 | D14: =IF(B14<=Budget!$G$18,D13*(1+Budget!$E$10),"-") -> 0 | E14: =IF(B14=Inputs!$C$36,Inputs!$C$35,0) -> 0 | F14: =IF(B14<=Budget!$G$18,Budget!$H$25,"-") -> 249.5206141 | G14: =Budget!E41 -> 446.0121817 | H14: =Budget!P41 -> 89.50379591 | I14: =Budget!H41 -> 0
B15: 11 | C15: 0 | D15: =IF(B15<=Budget!$G$18,D14*(1+Budget!$E$10),"-") -> 0 | E15: =IF(B15=Inputs!$C$36,Inputs!$C$35,0) -> 0 | F15: =IF(B15<=Budget!$G$18,Budget!$H$25,"-") -> 249.5206141 | G15: =Budget!E42 -> 523.5821381 | H15: =Budget!P42 -> 101.6365327 | I15: =Budget!H42 -> 0
B16: 12 | C16: 0 | D16: =IF(B16<=Budget!$G$18,D15*(1+Budget!$E$10),"-") -> 0 | E16: =IF(B16=Inputs!$C$36,Inputs!$C$35,0) -> 0 | F16: =IF(B16<=Budget!$G$18,Budget!$H$25,"-") -> 249.5206141 | G16: =Budget!E43 -> 604.3493028 | H16: =Budget!P43 -> 114.2597901 | I16: =Budget!H43 -> 0
B17: 13 | C17: 0 | D17: =IF(B17<=Budget!$G$18,D16*(1+Budget!$E$10),"-") -> 0 | E17: =IF(B17=Inputs!$C$36,Inputs!$C$35,0) -> 0 | F17: =IF(B17<=Budget!$G$18,Budget!$H$25,"-") -> 249.5206141 | G17: =Budget!E44 -> 688.4168089 | H17: =Budget!P44 -> 127.3892787 | I17: =Budget!H44 -> 0
B18: 14 | C18: 0 | D18: =IF(B18<=Budget!$G$18,D17*(1+Budget!$E$10),"-") -> 0 | E18: =IF(B18=Inputs!$C$36,Inputs!$C$35,0) -> 0 | F18: =IF(B18<=Budget!$G$18,Budget!$H$25,"-") -> 249.5206141 | G18: =Budget!E45 -> 775.8907802 | H18: =Budget!P45 -> 141.041163 | I18: =Budget!H45 -> 0
B19: 15 | C19: 0 | D19: =IF(B19<=Budget!$G$18,D18*(1+Budget!$E$10),"-") -> 0 | E19: =IF(B19=Inputs!$C$36,Inputs!$C$35,0) -> 0 | F19: =IF(B19<=Budget!$G$18,Budget!$H$25,"-") -> 249.5206141 | G19: =Budget!E46 -> 866.8804126 | H19: =Budget!P46 -> 155.2320739 | I19: =Budget!H46 -> 100490.1819
B21: Sum totals | C21: =SUM(C4:C19) -> 72898.875 | D21: =SUM(D5:D19) -> 0 | E21: =SUM(E4:E19) -> 71652.94886 | F21: =SUM(F5:F19) -> 3742.809211 | G21: =SUM(G4:G19) -> 4734.1527 | H21: =SUM(H4:H19) -> 1062.331727 | I21: =SUM(I4:I19) -> 100490.1819
B23: PV | C23: =NPV($C$25,C5:C19)+C4 -> 72898.875 | D23: =NPV($C$25,D5:D19)+D4 -> 0 | E23: 71602.06575 | F23: 2589.938647 | G23: 2566.247373 | H23: 632.3155504 | I23: 48337.49566
B25: Discount Rate | C25: =Inputs!C10 -> 0.05
B27: Including Value of Land Preserved | E27: Not Including Value of Land Preserved
B28: Net Present Value | C28: =(-C23-D23+E23+F23+G23-H23+I23) -> 51564.55688 | E28: Net Present Value | F28: =(-C23-D23+E23+F23+G23-H23) -> 3227.061222
B29: Annualized Value | C29: =PMT($C$25,$A$50,C28)*-1 -> 4967.84737 | E29: Annualized Value | F29: =PMT($C$25,$A$50,F28)*-1 -> 310.9024604
B33: Net Cropping Area Table | H33: Graph Data
B34: Year | C34: CCRP | D34: Acres Preserved | E34: Cropped w/out Project | F34: Actual Cropped | G34: Net Cropped | H34: =E34 -> Cropped w/out Project | I34: =F34 -> Actual Cropped | J34: =C34 -> CCRP | K34: =G34 -> Net Cropped
A35: =IF(B35<=Budget!$G$18,NPV!B35,0) -> 1 | B35: 1 | C35: =Budget!K32 -> 2.181818182 | D35: =Budget!F32 -> 0.6666666667 | E35: =Inputs!C4-NPV!D35 -> 79.33333333 | F35: =Inputs!C4-NPV!C35 -> 77.81818182 | G35: =F35-E35 -> -1.515151515 | H35: =IF($B35=$A35,E35,NA()) -> 79.33333333 | I35: =IF($B35=$A35,F35,NA()) -> 77.81818182 | J35: =IF($B35=$A35,C35,NA()) -> 2.181818182 | K35: =IF($B35=$A35,G35,NA()) -> -1.515151515
A36: =IF(B36<=Budget!$G$18,NPV!B36,"") -> 2 | B36: 2 | C36: =Budget!K33 -> 2.181818182 | D36: =Budget!F33 -> 1.333333333 | E36: =IF(B36<=Budget!$G$18,E35-$D$35,"") -> 78.66666667 | F36: =IF(B36<=Budget!$G$18,F35,"") -> 77.81818182 | G36: =IF(B36<=Budget!$G$18,F36-E36,"-") -> -0.8484848485 | H36: =IF($B36=$A36,E36,NA()) -> 78.66666667 | I36: 77.81818182 | J36: =IF($B36=$A36,C36,NA()) -> 2.181818182 | K36: =IF($B36=$A36,G36,NA()) -> -0.8484848485
A37: =IF(B37<=Budget!$G$18,NPV!B37,"") -> 3 | B37: 3 | C37: =Budget!K34 -> 2.181818182 | D37: =Budget!F34 -> 2 | E37: =IF(B37<=Budget!$G$18,E36-$D$35,"") -> 78 | F37: =IF(B37<=Budget!$G$18,F36,"") -> 77.81818182 | G37: =IF(B37<=Budget!$G$18,F37-E37,"-") -> -0.1818181818 | H37: 78 | I37: 77.81818182 | J37: 2.181818182 | K37: -0.1818181818
A38: =IF(B38<=Budget!$G$18,NPV!B38,"") -> 4 | B38: 4 | C38: =Budget!K35 -> 2.181818182 | D38: =Budget!F35 -> 2.666666667 | E38: =IF(B38<=Budget!$G$18,E37-$D$35,"") -> 77.33333333 | F38: =IF(B38<=Budget!$G$18,F37,"") -> 77.81818182 | G38: =IF(B38<=Budget!$G$18,F38-E38,"-") -> 0.4848484848 | H38: 77.33333333 | I38: 77.81818182 | J38: 2.181818182 | K38: 0.4848484848
A39: =IF(B39<=Budget!$G$18,NPV!B39,"") -> 5 | B39: 5 | C39: =Budget!K36 -> 2.181818182 | D39: =Budget!F36 -> 3.333333333 | E39: =IF(B39<=Budget!$G$18,E38-$D$35,"") -> 76.66666667 | F39: =IF(B39<=Budget!$G$18,F38,"") -> 77.81818182 | G39: =IF(B39<=Budget!$G$18,F39-E39,"-") -> 1.151515152 | H39: 76.66666667 | I39: 77.81818182 | J39: 2.181818182 | K39: 1.151515152
A40: =IF(B40<=Budget!$G$18,NPV!B40,"") -> 6 | B40: 6 | C40: =Budget!K37 -> 2.181818182 | D40: =Budget!F37 -> 4 | E40: =IF(B40<=Budget!$G$18,E39-$D$35,"") -> 76 | F40: =IF(B40<=Budget!$G$18,F39,"") -> 77.81818182 | G40: =IF(B40<=Budget!$G$18,F40-E40,"-") -> 1.818181818 | H40: 76 | I40: 77.81818182 | J40: 2.181818182 | K40: 1.818181818
A41: =IF(B41<=Budget!$G$18,NPV!B41,"") -> 7 | B41: 7 | C41: =Budget!K38 -> 2.181818182 | D41: =Budget!F38 -> 4.666666667 | E41: =IF(B41<=Budget!$G$18,E40-$D$35,"") -> 75.33333333 | F41: =IF(B41<=Budget!$G$18,F40,"") -> 77.81818182 | G41: =IF(B41<=Budget!$G$18,F41-E41,"-") -> 2.484848485 | H41: 75.33333333 | I41: 77.81818182 | J41: 2.181818182 | K41: 2.484848485
A42: =IF(B42<=Budget!$G$18,NPV!B42,"") -> 8 | B42: 8 | C42: =Budget!K39 -> 2.181818182 | D42: =Budget!F39 -> 5.333333333 | E42: =IF(B42<=Budget!$G$18,E41-$D$35,"") -> 74.66666667 | F42: =IF(B42<=Budget!$G$18,F41,"") -> 77.81818182 | G42: =IF(B42<=Budget!$G$18,F42-E42,"-") -> 3.151515152 | H42: 74.66666667 | I42: 77.81818182 | J42: 2.181818182 | K42: 3.151515152
A43: =IF(B43<=Budget!$G$18,NPV!B43,"") -> 9 | B43: 9 | C43: =Budget!K40 -> 2.181818182 | D43: =Budget!F40 -> 6 | E43: =IF(B43<=Budget!$G$18,E42-$D$35,"") -> 74 | F43: =IF(B43<=Budget!$G$18,F42,"") -> 77.81818182 | G43: =IF(B43<=Budget!$G$18,F43-E43,"-") -> 3.818181818 | H43: 74 | I43: 77.81818182 | J43: 2.181818182 | K43: 3.818181818
A44: =IF(B44<=Budget!$G$18,NPV!B44,"") -> 10 | B44: 10 | C44: =Budget!K41 -> 2.181818182 | D44: =Budget!F41 -> 6.666666667 | E44: =IF(B44<=Budget!$G$18,E43-$D$35,"") -> 73.33333333 | F44: =IF(B44<=Budget!$G$18,F43,"") -> 77.81818182 | G44: =IF(B44<=Budget!$G$18,F44-E44,"-") -> 4.484848485 | H44: 73.33333333 | I44: 77.81818182 | J44: 2.181818182 | K44: 4.484848485
A45: =IF(B45<=Budget!$G$18,NPV!B45,"") -> 11 | B45: 11 | C45: =Budget!K42 -> 2.181818182 | D45: =Budget!F42 -> 7.333333333 | E45: =IF(B45<=Budget!$G$18,E44-$D$35,"") -> 72.66666667 | F45: =IF(B45<=Budget!$G$18,F44,"") -> 77.81818182 | G45: =IF(B45<=Budget!$G$18,F45-E45,"-") -> 5.151515152 | H45: 72.66666667 | I45: 77.81818182 | J45: 2.181818182 | K45: 5.151515152
A46: =IF(B46<=Budget!$G$18,NPV!B46,"") -> 12 | B46: 12 | C46: =Budget!K43 -> 2.181818182 | D46: =Budget!F43 -> 8 | E46: =IF(B46<=Budget!$G$18,E45-$D$35,"") -> 72 | F46: =IF(B46<=Budget!$G$18,F45,"") -> 77.81818182 | G46: =IF(B46<=Budget!$G$18,F46-E46,"-") -> 5.818181818 | H46: 72 | I46: 77.81818182 | J46: 2.181818182 | K46: 5.818181818
A47: =IF(B47<=Budget!$G$18,NPV!B47,"") -> 13 | B47: 13 | C47: =Budget!K44 -> 2.181818182 | D47: =Budget!F44 -> 8.666666667 | E47: =IF(B47<=Budget!$G$18,E46-$D$35,"") -> 71.33333333 | F47: =IF(B47<=Budget!$G$18,F46,"") -> 77.81818182 | G47: =IF(B47<=Budget!$G$18,F47-E47,"-") -> 6.484848485 | H47: 71.33333333 | I47: 77.81818182 | J47: 2.181818182 | K47: 6.484848485
A48: =IF(B48<=Budget!$G$18,NPV!B48,"") -> 14 | B48: 14 | C48: =Budget!K45 -> 2.181818182 | D48: =Budget!F45 -> 9.333333333 | E48: =IF(B48<=Budget!$G$18,E47-$D$35,"") -> 70.66666667 | F48: =IF(B48<=Budget!$G$18,F47,"") -> 77.81818182 | G48: =IF(B48<=Budget!$G$18,F48-E48,"-") -> 7.151515152 | H48: 70.66666667 | I48: 77.81818182 | J48: 2.181818182 | K48: 7.151515152
A49: =IF(B49<=Budget!$G$18,NPV!B49,"") -> 15 | B49: 15 | C49: =Budget!K46 -> 2.181818182 | D49: =Budget!F46 -> 10 | E49: =IF(B49<=Budget!$G$18,E48-$D$35,"") -> 70 | F49: =IF(B49<=Budget!$G$18,F48,"") -> 77.81818182 | G49: =IF(B49<=Budget!$G$18,F49-E49,"-") -> 7.818181818 | H49: 70 | I49: 77.81818182 | J49: 2.181818182 | K49: 7.818181818
A50: =MAX(A35:A49) -> 15
